Cogmind - Beta 12 @@@ ROGUE MODE // 2023.04.11 @ 00:07:44 Player: Mr Goldstein Result: Destroyed by S-27 Virus with Autogun Performance ------------- Evolutions (5) 2500 Regions Visited (8) 1600 Robots Destroyed (12) 60 Value Destroyed (367) 367 Prototype IDs (1) 20 Alien Tech Used (0) 0 Bonus (2630) 2630 TOTAL SCORE: 7177 Bonus ------- Pacifist 1524 High Alert Combat Kills 6 Entered DSFs 500 Met Imprinter 300 Was Imprinted 300 Cogmind --------- Core Integrity 0/1000 Matter 233/300 Energy 99/100 System Corruption 0% Temperature Cool (0) Movement Core (50) Location -5/Factory Parts ------- > --- POWER (1) -------- (None) > --- PROPULSION (2) --- (None) > --- UTILITY (12) ----- Enhanced Optical Array > --- WEAPON (2) ------- Improved Datajack > --- INVENTORY (5) ---- Enhanced Optical Array Bomb Factory No. 2 Peak State ------------ > --- POWER ------------ (None) > --- PROPULSION ------- (None) > --- UTILITY ---------- Bomb Factory No. 2 > --- WEAPON ----------- (None) > --- INVENTORY -------- (None) [Rating: 12] Favorites ----------- Power None Propulsion None Utility Enhanced Optical Array Device Bomb Factory No. 2 Processor Enhanced Optical Array Weapon Remote Datajack Special Weapon Remote Datajack Impact Weapon Heavy Mace Special Melee Weapon Improved Datajack Build | -11 -10 -9 -9 -7 -6 -6 -6 -5 ------- Run | Jun Mat Mat Min Zio Pro Fac DSF Fac Slots Evolved 10 | . . 2 . . . 6 . 2 Power . | . . . . . . . . . Propulsion . | . . . . . . . . . Utility 10 | . . 2 . . . 6 . 2 Weapon . | . . . . . . . . . Parts Attached 6 | . . . . 1 . . 1 4 Power . | . . . . . . . . . Engine . | . . . . . . . . . Core . | . . . . . . . . . Reactor . | . . . . . . . . . Propulsion . | . . . . . . . . . Treads . | . . . . . . . . . Leg . | . . . . . . . . . Wheel . | . . . . . . . . . Hover . | . . . . . . . . . Flight . | . . . . . . . . . Utility 2 | . . . . 1 . . 1 . Device 1 | . . . . 1 . . . . Storage . | . . . . . . . . . Processor 1 | . . . . . . . 1 . Hackware . | . . . . . . . . . Protection . | . . . . . . . . . Artifact . | . . . . . . . . . Weapon 4 | . . . . . . . . 4 Energy Gun . | . . . . . . . . . Energy Cannon . | . . . . . . . . . Ballistic Gun . | . . . . . . . . . Ballistic Cannon . | . . . . . . . . . Launcher . | . . . . . . . . . Special Weapon 2 | . . . . . . . . 2 Impact Weapon 1 | . . . . . . . . 1 Slashing Weapon . | . . . . . . . . . Piercing Weapon . | . . . . . . . . . Special Melee Weapon 1 | . . . . . . . . 1 Unidentified Prototypes 1 | . . . . 1 . . . . Parts Lost 2 | . . . . . . . . 2 Power . | . . . . . . . . . Propulsion . | . . . . . . . . . Utility . | . . . . . . . . . Weapon 2 | . . . . . . . . 2 Highest Loss Streak 2 | . . . . . . . . 2 To Critical Strikes . | . . . . . . . . . Average Slot Usage (%) 1 | . . . . . . . 6 7 Naked Turns 787 | . 45 64 22 364 157 131 4 . Heaviest Build 3 | . . . . . . . . 3 Greatest Support 3 | 3 3 3 3 3 3 3 3 3 Greatest Overweight (x) . | . . . . . . . . . Average Overweight (x) . | . . . . . . . . . Largest Inventory Capacity 5 | 5 5 5 5 5 5 5 5 5 Average Capacity 5 | 5 5 5 5 5 5 5 5 5 Most Carried 5 | . . . . 3 4 4 5 5 Average Carried 2 | . . . . 1 3 4 4 4 Final Capacity 5 | 5 5 5 5 5 5 5 5 5 Final Carried 5 | . . . . 3 4 4 5 3 Class Distribution -------------------- 100% | Mutant Dominant Class ---------------- Mutant | -10/Materials Mutant | -9/Materials Mutant | -9/Mines Mutant | -7/Zion Mutant | -6/Proximity Caves Mutant | -6/Factory Mutant | -6/DSF Mutant | -5/Factory Resources | -11 -10 -9 -9 -7 -6 -6 -6 -5 ----------- Run | Jun Mat Mat Min Zio Pro Fac DSF Fac Matter Collected 203 | 31 . . . 123 46 . 3 . Remotely . | . . . . . . . . . Salvage Created 196 | . . . . . . . . 196 Parts 17 | . . . . . . . . 17 Haulers Intercepted . | . . . . . . . . . Recyclers Shooed . | . . . . . . . . . Parts Field Recycled . | . . . . . . . . . Retrieved Matter . | . . . . . . . . . Parts Self-Destructed . | . . . . . . . . . Prevented . | . . . . . . . . . Kills | -11 -10 -9 -9 -7 -6 -6 -6 -5 ------- Run | Jun Mat Mat Min Zio Pro Fac DSF Fac Combat Hostiles Destroyed 5 | . . . . . . . . 5 AOE 5 | . . . . . . . . 5 Classes Destroyed 5 | . . . . . . . . 5 Worker 2 | . . . . . . . . 2 Builder 2 | . . . . . . . . 2 Recycler 1 | . . . . . . . . 1 Watcher 2 | . . . . . . . . 2 Swarmer 5 | . . . . . . . . 5 Best Kill Streak 12 | . . . . . . . . 12 Combat Bots Only 5 | . . . . . . . . 5 Max Kills in Single Turn 10 | . . . . . . . . 10 Gunslinging . | . . . . . . . . . Exploded 4 | . . . . . . . . 4 Melee . | . . . . . . . . . Uniques/NPCs Destroyed . | . . . . . . . . . Combat | -11 -10 -9 -9 -7 -6 -6 -6 -5 -------- Run | Jun Mat Mat Min Zio Pro Fac DSF Fac Damage Taken 1598 | . . 10 41 . 285 12 50 1200 Core 1414 | . . 10 41 . 285 12 50 1016 Absorbed by Shields . | . . . . . . . . . Core Remaining (%) 77 | 100 100 . . . 16 . 92 . Volleys Fired 4 | . . . . . . . . 4 Largest 1 | . . . . . . . . 1 Hottest 5 | . . . . . . . . 5 Shots Fired 4 | . . . . . . . . 4 Gun . | . . . . . . . . . Cannon . | . . . . . . . . . Launcher . | . . . . . . . . . Special 4 | . . . . . . . . 4 Kinetic . | . . . . . . . . . Thermal . | . . . . . . . . . Explosive . | . . . . . . . . . Electromagnetic . | . . . . . . . . . Robot Hit Streak 2 | . . . . . . . . 2 Robot Miss Streak 2 | . . . . . . . . 2 Penetration Max . | . . . . . . . . . Secondary Targets . | . . . . . . . . . Shots Hit Robots 5 | . . . . . . . . 5 Core Hits 13 | . . . . . . . . 13 Critical Kills . | . . . . . . . . . Critical Parts Destroyed . | . . . . . . . . . Critical Strikes . | . . . . . . . . . Melee Attacks 5 | . . . . . . . . 5 Impact 2 | . . . . . . . . 2 Slashing . | . . . . . . . . . Piercing . | . . . . . . . . . Sneak Attacks 3 | . . . . . . . . 3 Combat Hostiles . | . . . . . . . . . Follow-up Attacks . | . . . . . . . . . Damage Inflicted 1602 | . . . . . . . . 1602 Guns . | . . . . . . . . . Cannons . | . . . . . . . . . Explosions 1602 | . . . . . . . . 1602 Melee . | . . . . . . . . . Ramming . | . . . . . . . . . Kinetic . | . . . . . . . . . Thermal 371 | . . . . . . . . 371 Explosive 1231 | . . . . . . . . 1231 Electromagnetic . | . . . . . . . . . Impact . | . . . . . . . . . Slashing . | . . . . . . . . . Piercing . | . . . . . . . . . Highest Corruption . | . . . . . . . . . Average Corruption . | . . . . . . . . . Corruption Purged . | . . . . . . . . . Corruption Blocked . | . . . . . . . . . Overload Shots . | . . . . . . . . . Overflow Damage 82 | . . . . . . . . 82 Projectiles . | . . . . . . . . . Explosions 82 | . . . . . . . . 82 Melee . | . . . . . . . . . Knockbacks . | . . . . . . . . . Impact . | . . . . . . . . . Kinetic . | . . . . . . . . . Secondary . | . . . . . . . . . Self-Inflicted Damage 795 | . . . . . . . . 795 Shots 10 | . . . . . . . . 10 Rammed . | . . . . . . . . . Targets Rammed . | . . . . . . . . . Kicked . | . . . . . . . . . Crushed . | . . . . . . . . . Highest Temperature . | . . . . . . . . . Average Temperature . | . . . . . . . . . Received Heat Transfer 81 | . . 6 . . 75 . . . Siege Activations . | . . . . . . . . . Robots Corrupted . | . . . . . . . . . Combat Hostiles . | . . . . . . . . . Parts Fried . | . . . . . . . . . Impact Corruptions . | . . . . . . . . . Robots Melted . | . . . . . . . . . Combat Hostiles . | . . . . . . . . . Parts Melted . | . . . . . . . . . Heat Transferred 200 | . . . . . . . . 200 Parts Sabotaged . | . . . . . . . . . Parts Stolen . | . . . . . . . . . Parts Stripped . | . . . . . . . . . Power Chain Reactions . | . . . . . . . . . Missiles Intercepted . | . . . . . . . . . Alert | -11 -10 -9 -9 -7 -6 -6 -6 -5 ------- Run | Jun Mat Mat Min Zio Pro Fac DSF Fac Peak Influence 568 | . 30 57 37 . . 39 30 568 Initial 30 | . . 12 22 . . 9 30 15 Average 69 | . 11 35 36 . . 19 30 194 Maximum Alert Level 2 | . . . . . . . . 2 Low Security (%) 91 | 100 100 100 100 . . 100 100 69 Level 1 . | . . . . . . . . . Level 2 8 | . . . . . . . . 30 Level 3 . | . . . . . . . . . Level 4 . | . . . . . . . . . Level 5 . | . . . . . . . . . High Security . | . . . . . . . . . Max Security . | . . . . . . . . . Squads Dispatched 2 | . 1 . . . . . . 1 Investigation 1 | . . . . . . . . 1 Extermination . | . . . . . . . . . Reinforcement 1 | . 1 . . . . . . . Assault . | . . . . . . . . . Garrison . | . . . . . . . . . Intercept . | . . . . . . . . . Searches Triggered . | . . . . . . . . . Construction Impeded . | . . . . . . . . . Haulers Reinforced . | . . . . . . . . . Active Scanning Responses . | . . . . . . . . . Cargo Convoy Interrupts . | . . . . . . . . . Stealth | -11 -10 -9 -9 -7 -6 -6 -6 -5 --------- Run | Jun Mat Mat Min Zio Pro Fac DSF Fac Distress Signals 1 | . . 1 . . . . . . Communications Jammed . | . . . . . . . . . Distress Signals . | . . . . . . . . . Times Spotted 33 | . 4 4 3 . 9 1 1 11 Peak Tracking Total 9 | . 4 4 3 . 9 1 1 6 Tactical Retreats 3 | . . . . . 1 1 . 1 Traps | -11 -10 -9 -9 -7 -6 -6 -6 -5 ------- Run | Jun Mat Mat Min Zio Pro Fac DSF Fac Traps Triggered . | . . . . . . . . . Indirectly . | . . . . . . . . . Trap Hack Attempts . | . . . . . . . . . Triggered . | . . . . . . . . . Disarmed . | . . . . . . . . . Reprogrammed . | . . . . . . . . . Reused . | . . . . . . . . . Traps Extracted . | . . . . . . . . . Installed . | . . . . . . . . . Triggered . | . . . . . . . . . Machines | -11 -10 -9 -9 -7 -6 -6 -6 -5 ---------- Run | Jun Mat Mat Min Zio Pro Fac DSF Fac Machines Disabled 16 | . . . . . . . . 16 Max in Single Turn 13 | . . . . . . . . 13 Machines Repaired . | . . . . . . . . . Machines Sabotaged . | . . . . . . . . . Overloaded Fab Kills . | . . . . . . . . . Hacking | -11 -10 -9 -9 -7 -6 -6 -6 -5 --------- Run | Jun Mat Mat Min Zio Pro Fac DSF Fac Machines Accessed 2 | . . . . . . 1 . 1 Terminals 1 | . . . . . . 1 . . Fabricators 1 | . . . . . . . . 1 Repair Stations . | . . . . . . . . . Recycling Units . | . . . . . . . . . Scanalyzers . | . . . . . . . . . Garrison Access . | . . . . . . . . . Total Hacks 4 | . . . . . . 1 . 3 Successful 2 | . . . . . . 1 . 1 Failed 2 | . . . . . . . . 2 Catastrophic 1 | . . . . . . . . 1 Database Lockouts . | . . . . . . . . . Manual 2 | . . . . . . . . 2 Terminals 1 | . . . . . . 1 . . Fabricators 3 | . . . . . . . . 3 Repair Stations . | . . . . . . . . . Recycling Units . | . . . . . . . . . Scanalyzers . | . . . . . . . . . Garrison Access . | . . . . . . . . . Terminal Hacks 1 | . . . . . . 1 . . Open DSF 1 | . . . . . . 1 . . Fabricator Hacks . | . . . . . . . . . Repair Station Hacks . | . . . . . . . . . Recycling Unit Hacks . | . . . . . . . . . Scanalyzer . | . . . . . . . . . Garrison Access Hacks . | . . . . . . . . . Unauthorized Hacks 1 | . . . . . . . . 1 Terminals . | . . . . . . . . . Fabricators 1 | . . . . . . . . 1 Liberate 1 | . . . . . . . . 1 Repair Stations . | . . . . . . . . . Recycling Units . | . . . . . . . . . Scanalyzers . | . . . . . . . . . Garrison Access . | . . . . . . . . . Data Cores Recovered . | . . . . . . . . . Used . | . . . . . . . . . Hacking Detections 1 | . . . . . . . . 1 Full Trace Events 1 | . . . . . . . . 1 Feedback Events . | . . . . . . . . . Feedback Blocked . | . . . . . . . . . Robot Schematics Acquired . | . . . . . . . . . Robots Built . | . . . . . . . . . Authchips . | . . . . . . . . . Time . | . . . . . . . . . Total Robot Build Rating . | . . . . . . . . . Part Schematics Acquired . | . . . . . . . . . Parts Built . | . . . . . . . . . Authchips . | . . . . . . . . . Time . | . . . . . . . . . Total Part Build Rating . | . . . . . . . . . Parts Repaired . | . . . . . . . . . Time . | . . . . . . . . . Parts Recycled . | . . . . . . . . . Recycled Matter . | . . . . . . . . . Retrieved Matter . | . . . . . . . . . Retrieved Components . | . . . . . . . . . Parts Scanalyzed . | . . . . . . . . . Part Schematics Acquired . | . . . . . . . . . Parts Damaged . | . . . . . . . . . Bothacking | -11 -10 -9 -9 -7 -6 -6 -6 -5 ------------ Run | Jun Mat Mat Min Zio Pro Fac DSF Fac Used RIF Installer . | . . . . . . . . . Robots Hacked . | . . . . . . . . . Non-combat . | . . . . . . . . . Combat . | . . . . . . . . . Robot Hacks Applied . | . . . . . . . . . Relay Couplers Released . | . . . . . . . . . Fabnet Peak Effective % . | . . . . . . . . . Robots Rewired . | . . . . . . . . . Allies Hacked . | . . . . . . . . . Hacks Repelled . | . . . . . . . . . Allies | -11 -10 -9 -9 -7 -6 -6 -6 -5 -------- Run | Jun Mat Mat Min Zio Pro Fac DSF Fac Total Allies 4 | . . . . 4 . . . . Largest Group 4 | . . . . 4 . . . . Highest-Rated Group 152 | . . . . 152 . . . . Highest-Rated Ally 39 | . . . . 39 . . . . Total Orders . | . . . . . . . . . Ally Attacks . | . . . . . . . . . Total Damage . | . . . . . . . . . Kills . | . . . . . . . . . Allies Corrupted . | . . . . . . . . . Allies Melted . | . . . . . . . . . Intel | -11 -10 -9 -9 -7 -6 -6 -6 -5 ------- Run | Jun Mat Mat Min Zio Pro Fac DSF Fac Robot Analysis Total . | . . . . . . . . . Derelict Logs Recovered 3 | . . . . 2 1 . . . Drone Launches . | . . . . . . . . . Drone Recoveries . | . . . . . . . . . Exploration | -11 -10 -9 -9 -7 -6 -6 -6 -5 ------------- Run | Jun Mat Mat Min Zio Pro Fac DSF Fac Turns Passed 919 | 10 45 64 22 365 157 131 17 108 Spaces Moved 1781 | 19 90 128 44 723 311 261 30 175 Core 1781 | 19 90 128 44 723 311 261 30 175 Treads . | . . . . . . . . . Legs . | . . . . . . . . . Wheels . | . . . . . . . . . Hover . | . . . . . . . . . Flight . | . . . . . . . . . Fastest Speed 50 | 50 50 50 50 50 50 50 50 50 Average Speed 50 | 50 50 50 50 50 50 50 50 50 Slowest Speed 50 | 50 50 50 50 50 50 50 50 50 Overloaded Moves . | . . . . . . . . . Propulsion Burnouts . | . . . . . . . . . Robots Hopped . | . . . . . . . . . Cave-ins Triggered . | . . . . . . . . . Exploration Rate (%) 28 | 3 27 17 15 84 59 6 39 9 Regions Visited 8 Branch Regions 3 Pre-discovered Areas . | . . . . . . . . . Known Exits Taken 1 | . . . . . . 1 . . Unknown Exits Taken 6 | 1 1 1 1 1 1 . . . Scrap Searched 6 | . . . . 3 3 . . . Spaces Dug . | . . . . . . . . . Terrain Destroyed 75 | . . . . . . . . 75 Melee . | . . . . . . . . . Projectile . | . . . . . . . . . AOE 75 | . . . . . . . . 75 Terrain Rammed . | . . . . . . . . . Walls Destroyed . | . . . . . . . . . Machines Disabled . | . . . . . . . . . Actions | -11 -10 -9 -9 -7 -6 -6 -6 -5 --------- Run | Jun Mat Mat Min Zio Pro Fac DSF Fac Total 1795 | 18 89 127 43 726 311 260 31 190 Wait . | . . . . . . . . . Move 1773 | 18 89 127 43 722 310 260 29 175 Hop . | . . . . . . . . . Pick Up 5 | . . . . 2 1 . 1 1 Fast Attach 1 | . . . . . . . 1 . Attach 5 | . . . . 1 . . . 4 Detach 2 | . . . . 1 . . . 1 Swap . | . . . . . . . . . Drop . | . . . . . . . . . Fire 4 | . . . . . . . . 4 Melee 5 | . . . . . . . . 5 Ram . | . . . . . . . . . Kick . | . . . . . . . . . Crush . | . . . . . . . . . Escape Stasis . | . . . . . . . . . Rewire . | . . . . . . . . . Trap . | . . . . . . . . . Miscellaneous . | . . . . . . . . . Route ------- -11/Junkyard -10/Materials (discovered 2 exits: [*Mat] / [*Min]) -9/Materials -9/Mines -7/Zion -6/Proximity Caves -6/Factory (discovered 2 exits: Low / DSF) -6/DSF -5/Factory History --------- Turn | Location | Event 3 | -11/Junkyard | Discovered new exit (range 15) 11 | -11/Junkyard | Entered Materials 29 | -10/Materials | Discovered new exit (range 12) 51 | -10/Materials | Discovered new exit (range 11) 56 | -10/Materials | Entered another Materials area 56 | -9/Materials | Evolved 2 slots: Utility x2 83 | -9/Materials | Discovered new exit (range 8) 120 | -9/Materials | Entered Mines 134 | -9/Mines | Found a damaged Exp. Sensor Array with a note attached 140 | -9/Mines | A Derelict revealed a hidden shortcut to a safe place 142 | -9/Mines | Entered Zion 241 | -7/Zion | Imprinted 243 | -7/Zion | Declared Zion's savior 305 | -7/Zion | Build established: Mutant 334 | -7/Zion | Learned 4 Factory zone layouts 375 | -7/Zion | Learned location of 1 exit from Factory 379 | -7/Zion | Found Prototype Device 380 | -7/Zion | Identified Bomb Factory No. 2 499 | -7/Zion | Discovered new exit (range 15) 507 | -7/Zion | Entered Proximity Caves 551 | -6/Proximity Caves | Learned Factory stockpile data 647 | -6/Proximity Caves | Attracted the attention of an 0b10 checkpoint 649 | -6/Proximity Caves | Core integrity fell below 50% 661 | -6/Proximity Caves | Core integrity fell below 20% 661 | -6/Proximity Caves | Discovered new exit (range 6) 664 | -6/Proximity Caves | Entered Factory 664 | -6/Factory | Evolved 6 slots: Utility x6 665 | -6/Factory | Identified exit to Lower Caves 795 | -6/Factory | Identified exit to DSF 795 | -6/Factory | Entered DSF 802 | -6/DSF | Discovered new exit (range 21) 812 | -6/DSF | Entered Factory 812 | -5/Factory | Evolved 2 slots: Utility x2 888 | -5/Factory | Core integrity fell below 50% 888 | -5/Factory | Core integrity fell below 20% 920 | -5/Factory | Destroyed by S-27 Virus with Autogun Last Messages --------------- >>find_chute No applicable chute records found in memory. 00903_ Sneak attack on K-01 Serf. 00903_ Jacked K-01 Serf... >>find_chute No applicable chute records found in memory. 00904_ K-01 Serf cleans the Power Conduit. 00909_ Sneak attack on K-01 Serf. 00909_ Jacked K-01 Serf... >>find_chute No applicable chute records found in memory. 00912_ K-01 Serf cleans the Power Conduit. 00917_ Connecting with Fabricator... 00917_ Current location identified: Factory >>Trojan(Liberate) Trojan loaded successfully. Testing... Ready to liberate! 00917_ ALERT: Suspicious activity at Fabricator F004. Dispatching Investigation squad. Map ----- +----------------------------------------------------+ | ???????????????????????????# #??# | | ???????????????????????????# #??# | | ???????????????????????????+ #### | | ???????????????????????????# + | | ???????????????????????????# ####### | | ???????????????????????????# #?????########### | | ???????????????????????????# #???????????????? | | ???????????????????????????# #???????????????? | | ???????????????????????????# #???????????????? | | ??????????????????????#????# #???????????????? | | ??????????????????????# ???# #???????????????? | | ??????????????????????# ???# #???????????????? | | ??????????????????????# ???# #???????????????? | | ??????????????????????# ???# #???????????????? | | ????????????????????### #### #???????????????? | | ????????????????????# [ #???????????????? | | ????????????????????# +???????????????? | | ????????????????????+ """"" #???????????????? | | ????????????????????# "" F" #???????????????? | | ????????????????????+ "" "" #???????????????? | | ????????????????????# ###???????????????? | | ????????????????????# #?????????????????? | | ????????????????????# #?????????????????? | | ????????????????????# ###?????????????????? | | ?????????????????#s## #???????????????????? | | ?????????????????# s @ #???????????????????? | | ??????????# s #???????????????????? | | ??????????# #+####+#+##+#???????????????????? | | ??????????#=== ??????????????????????????????????? | | ??????????#==????????????????????????????????????? | | ??????????#??????????????????????????????????????? | | ?????????????????????????????????????????????????? | | ?????????????????????????????????????????????????? | | ?????????????????????????????????????????????????? | | ?????????????????????????????????????????????????? | | ?????????????????????????????????????????????????? | | ?????????????????????????????????????????????????? | | ?????????????????????????????????????????????????? | | ?????????????????????????????????????????????????? | | ?????????????????????????????????????????????????? | | ?????????????????????????????????????????????????? | | ?????????????????????????????????????????????????? | | ?????????????????????????????????????????????????? | | ?????????????????????????????????????????????????? | | ?????????????????????????????????????????????????? | | | | | | | | | | | +----------------------------------------------------+ Best States ------------- Heat Dissipation 40 Energy Generation 5 Energy Capacity 100 Matter Stores 290 Matter Capacity 300 Sight Range 22 Terrain Scan Density 10 Evasion (%) 50 Item Schematics ----------------- None Robot Schematics ------------------ None Fabricated ------------ Nothing Alien Tech Used ----------------- None Achievements -------------- None Challenges ------------ None Game ------ Seed LightningContainmentCoupler Manual? 0 Play Time 00:14:47 Cumulative 92.3 hours Start 2023.04.10 @ 23:54:43 End 2023.04.11 @ 00:07:44 Sessions 1 Manual Loads 0 Difficulty Rogue Special Mode None Game No. 153 Rogue 153 Adventurer 0 Explorer 0 Win Type - Total 2 Types 2/0/0/0/0/0/0/0/0 Lore% 55 Gallery% 56 Achievement% 46 Wizard Run 0 Options --------- ASCII 0 Keyboard 0 Movement Numpad Keybinds 0 Fullscreen 1 Font 12/Smallcaps Map View 83x54 Tactical HUD 1 Map Filters NONE Filters NONE Steam 1 RUN: 6b3379b6-1cfb-490b-87a6-1e92ec9e66ab